[Event "FIDE WCCC Open-10 2024"]
[Site "Montesilvano"]
[Date "2024.11.22"]
[Round "7.24"]
[White "Aitmukhanov, Arsen"]
[Black "Ivanovic, Leonid"]
[Result "1-0"]
[Annotator "NA RC"]
[ECO "A04"]
[WhiteElo "1579"]
[BlackElo "1990"]
[PlyCount "83"]
[EventDate "2024.11.18"]
[EventType "swiss"]
[EventCountry "ITA"]
[SourceTitle "playchess.com"]
[Source "ChessBase"]
[SourceQuality "1"]
[TimeControl "5400+30"]

1. e4 {[%emt 0:00:09]} c5 {[%emt 0:00:32]} 2. Nf3 {[%emt 0:00:05]} e6 {[%emt 0:00:42]} 3. g3 {[%emt 0:00:08]} Nc6 {[%emt 0:00:43]} 4. Bg2 {[%emt 0:00:16]} g6 {[%emt 0:00:37]} 5. O-O {[%emt 0:00:10]} Bg7 {[%emt 0:00:27]} 6. c3 {[%emt 0:00:07]} e5 {[%emt 0:02:16]} 7. d3 {[%emt 0:00:33]} Nge7 {[%emt 0:01:46]} 8. Be3 {[%emt 0:01:16]} d6 {[%emt 0:00:43]} 9. d4 {[%emt 0:01:37]} exd4 {[%emt 0:01:12]} 10. cxd4 {[%emt 0:00:05]} Bg4 {[%emt 0:01:13]} 11. dxc5 {[%emt 0:28:10]} dxc5 {[%emt 0:06:42]} 12. Qb3 {[%emt 0:16:14]} Qb6 {[%emt 0:22:51]} 13. Nc3 {[%emt 0:02:16]} Qxb3 {[%emt 0:06:49]} 14. axb3 {[%emt 0:00:07]} b6 {[%emt 0:00:54]} 15. h3 {[%emt 0:01:59]} Be6 {[%emt 0:14:49]} 16. Nb5 {[%emt 0:04:05]} O-O {[%emt 0:03:55]} 17. Nc7 {[%emt 0:00:11]} Rad8 {[%emt 0:02:22]} 18. Nxe6 {[%emt 0:00:11]} fxe6 {[%emt 0:00:01]} 19. Ng5 {[%emt 0:00:41]} Rd6 {[%emt 0:04:16]} 20. f4 {[%emt 0:00:35]} h6 {[%emt 0:07:26]} 21. e5 {[%emt 0:05:10]} Rd3 {[%emt 0:02:18]} 22. Nxe6 {[%emt 0:00:07]} Rxe3 {[%emt 0:00:09]} 23. Nxf8 {[%emt 0:00:05]} Kxf8 {[%emt 0:00:22]} 24. Rfd1 {[%emt 0:00:07]} Rxg3 {[%emt 0:19:25]} 25. Rd6 {[%emt 0:02:33]} Na5 {[%emt 0:00:00]} 26. Rd8+ {[%emt 0:02:12]} Kf7 {[%emt 0:00:00]} 27. Kh2 {[%emt 0:00:33]} Rxb3 {[%emt 0:00:00]} 28. Rad1 {[%emt 0:01:07]} Rxb2 {[%emt 0:01:10]} 29. R1d7 {[%emt 0:00:37]} Bf8 {[%emt 0:00:43]} 30. Rd6 {[%emt 0:02:31]} Bg7 {[%emt 0:00:29]} 31. Kh1 {[%emt 0:00:30]} Rb4 {[%emt 0:00:31]} 32. R8d7 {[%emt 0:01:06]} Bf8 {[%emt 0:00:31]} 33. Rf6+ {[%emt 0:00:09]} Ke8 {[%emt 0:00:18]} 34. Rxa7 {[%emt 0:00:08]} Rb1+ {[%emt 0:00:38]} 35. Kh2 {[%emt 0:00:07]} c4 {[%emt 0:00:35]} 36. Ra8+ {[%emt 0:00:33]} Kd7 {[%emt 0:00:05]} 37. Raxf8 {[%emt 0:00:18]} Rd1 {[%emt 0:00:52]} 38. e6+ {[%emt 0:00:28]} Kc7 {[%emt 0:00:10]} 39. R6f7 {[%emt 0:00:09]} Kd6 {[%emt 0:00:53]} 40. Rd8+ {[%emt 0:00:24]} Kxe6 {[%emt 0:00:02]} 41. Rxe7+ {[%emt 0:00:05]} Kxe7 {[%emt 0:00:05]} 42. Rxd1 {[%emt 0:00:07]} 1-0

[Event "FIDE WCCC Open-10 2024"]
[Site "Montesilvano"]
[Date "2024.11.22"]
[Round "7.25"]
[White "Larion, Iustin"]
[Black "Babeikin, Kiryl"]
[Result "0-1"]
[Annotator "NA RC"]
[ECO "D00"]
[WhiteElo "1925"]
[BlackElo "1721"]
[PlyCount "110"]
[EventDate "2024.11.18"]
[EventType "swiss"]
[EventCountry "ITA"]
[SourceTitle "playchess.com"]
[Source "ChessBase"]
[SourceQuality "1"]
[TimeControl "5400+30"]

1. d4 {[%emt 0:00:05]} d5 {[%emt 0:00:06]} 2. Bg5 {[%emt 0:00:05]} Nf6 {[%emt 0:00:07]} 3. e3 {[%emt 0:00:04]} c5 {[%emt 0:00:17]} 4. Nd2 {[%emt 0:00:09]} Nbd7 {[%emt 0:04:59]} 5. c3 {[%emt 0:02:12]} Qb6 {[%emt 0:03:20]} 6. Rb1 {[%emt 0:02:28]} e6 {[%emt 0:00:23]} 7. Bd3 {[%emt 0:01:31]} e5 {[%emt 0:13:14]} 8. dxe5 {[%emt 0:02:45]} Nxe5 {[%emt 0:00:22]} 9. Ndf3 {[%emt 0:01:49]} Nxd3+ {[%emt 0:02:46]} 10. Qxd3 {[%emt 0:00:03]} c4 {[%emt 0:01:17]} 11. Qd1 {[%emt 0:06:58]} Bf5 {[%emt 0:01:59]} 12. Qa4+ {[%emt 0:10:42]} (12. Rc1 $17) 12... Qc6 {[%emt 0:03:04]} 13. Qxc6+ {[%emt 0:00:13]} bxc6 $15 {[%emt 0:00:03]} 14. Rd1 {[%emt 0:00:14]} Ne4 {[%emt 0:07:03]} 15. Ne2 {[%emt 0:06:54]} Rb8 {[%emt 0:17:00]} 16. b3 {[%emt 0:07:07]} cxb3 {[%emt 0:03:31]} 17. axb3 {[%emt 0:01:26]} Bg4 {[%emt 0:03:28]} 18. Bf4 {[%emt 0:00:48]} Rxb3 {[%emt 0:01:21]} 19. O-O {[%emt 0:00:12]} Rb2 {[%emt 0:05:44]} 20. Ned4 {[%emt 0:00:43]} c5 {[%emt 0:05:22]} 21. Nc6 {[%emt 0:00:14]} Nxc3 {[%emt 0:01:36]} 22. Ra1 {[%emt 0:00:34]} Ne2+ {[%emt 0:01:11]} 23. Kh1 {[%emt 0:00:02]} Nxf4 {[%emt 0:00:08]} 24. Nfe5 {[%emt 0:06:38]} Bd7 {[%emt 0:05:49]} 25. exf4 {[%emt 0:00:52]} Bd6 {[%emt 0:10:11]} 26. Rfe1 {[%emt 0:04:25]} Bxc6 {[%emt 0:01:01]} 27. Nd3+ {[%emt 0:00:39]} Kd7 {[%emt 0:00:06]} 28. Nxb2 {[%emt 0:00:06]} Ra8 {[%emt 0:00:04]} 29. Nd3 {[%emt 0:10:27]} f6 {[%emt 0:00:16]} 30. f5 {[%emt 0:12:44]} c4 {[%emt 0:03:25]} 31. Nc1 {[%emt 0:00:18]} Bc5 {[%emt 0:02:35]} 32. Ne2 {[%emt 0:03:39]} Re8 {[%emt 0:00:34]} 33. Nf4 {[%emt 0:01:29]} Rxe1+ {[%emt 0:00:23]} 34. Rxe1 {[%emt 0:00:01]} Bxf2 {[%emt 0:02:33]} 35. Rd1 {[%emt 0:00:01]} d4 {[%emt 0:00:16]} 36. Ne2 {[%emt 0:01:29]} d3 {[%emt 0:00:10]} 37. Nc3 {[%emt 0:00:17]} Bd4 {[%emt 0:00:13]} 38. Nb1 {[%emt 0:00:24]} Ba4 {[%emt 0:00:10]} 39. Rc1 {[%emt 0:00:09]} c3 {[%emt 0:01:07]} 40. Nxc3 {[%emt 0:02:08]} d2 {[%emt 0:00:05]} 41. Ne2 {[%emt 0:00:17]} dxc1=Q+ {[%emt 0:00:12]} 42. Nxc1 {[%emt 0:00:15]} Bc2 {[%emt 0:00:08]} 43. Ne2 {[%emt 0:00:05]} Be5 {[%emt 0:00:09]} 44. g4 {[%emt 0:00:06]} a5 {[%emt 0:00:04]} 45. Kg2 {[%emt 0:00:13]} a4 {[%emt 0:00:05]} 46. Kf3 {[%emt 0:00:11]} Bd1 {[%emt 0:00:06]} 47. Ke3 {[%emt 0:00:09]} Bxe2 {[%emt 0:00:06]} 48. Kxe2 {[%emt 0:00:06]} a3 {[%emt 0:00:05]} 49. h4 {[%emt 0:00:07]} a2 {[%emt 0:00:02]} 50. g5 {[%emt 0:00:13]} a1=Q {[%emt 0:00:05]} 51. g6 {[%emt 0:00:39]} h5 {[%emt 0:00:07]} 52. Kf2 {[%emt 0:00:20]} Qb2+ {[%emt 0:00:06]} 53. Kf3 {[%emt 0:00:04]} Qc3+ {[%emt 0:00:04]} 54. Ke4 {[%emt 0:00:11]} Kc7 {[%emt 0:00:15]} 55. Kd5 {[%emt 0:00:16]} Qc6# {[%emt 0:00:06]} 0-1

[Event "FIDE WCCC Open-10 2024"]
[Site "Montesilvano"]
[Date "2024.11.22"]
[Round "7.26"]
[White "Wang, Rocky"]
[Black "Kais, Kristofer"]
[Result "1/2-1/2"]
[Annotator "NA RC"]
[ECO "B36"]
[WhiteElo "1853"]
[BlackElo "1723"]
[PlyCount "161"]
[EventDate "2024.11.18"]
[EventType "swiss"]
[EventCountry "ITA"]
[SourceTitle "playchess.com"]
[Source "ChessBase"]
[SourceQuality "1"]
[TimeControl "5400+30"]

1. e4 {[%emt 0:00:05]} c5 {[%emt 0:00:08]} 2. Nf3 {[%emt 0:00:18]} g6 {[%emt 0:00:15]} 3. d4 {[%emt 0:00:47]} cxd4 {[%emt 0:00:08]} 4. Nxd4 {[%emt 0:00:08]} Nc6 {[%emt 0:00:08]} 5. c4 {[%emt 0:02:20]} Nf6 {[%emt 0:00:15]} 6. Nc3 {[%emt 0:02:36]} Nxd4 {[%emt 0:00:09]} 7. Qxd4 {[%emt 0:00:08]} d6 {[%emt 0:00:06]} 8. Be3 {[%emt 0:03:59]} Bg7 {[%emt 0:00:33]} 9. Be2 {[%emt 0:01:20]} O-O {[%emt 0:00:20]} 10. Qd2 {[%emt 0:00:05]} Be6 {[%emt 0:02:16]} 11. Rc1 {[%emt 0:03:49]} Rc8 {[%emt 0:03:44]} 12. b3 {[%emt 0:00:10]} Qa5 $14 {[%emt 0:02:54]} 13. f3 {[%emt 0:01:56]} a6 {[%emt 0:01:49]} 14. Na4 {[%emt 0:06:51]} Qxd2+ {[%emt 0:02:31]} 15. Kxd2 {[%emt 0:00:10]} Nd7 {[%emt 0:04:28]} 16. Nc3 {[%emt 0:06:12]} Rc7 {[%emt 0:08:34]} 17. f4 {[%emt 0:08:24]} Nc5 {[%emt 0:12:38]} 18. Bf3 {[%emt 0:02:27]} Rb8 {[%emt 0:05:51]} 19. g4 {[%emt 0:08:15]} Bxc3+ {[%emt 0:07:15]} 20. Rxc3 {[%emt 0:00:49]} Bxg4 {[%emt 0:02:58]} 21. Bxg4 {[%emt 0:01:24]} Nxe4+ {[%emt 0:00:26]} 22. Kd3 {[%emt 0:01:03]} Nxc3 {[%emt 0:00:28]} 23. Kxc3 {[%emt 0:00:03]} b5 {[%emt 0:02:41]} 24. Bd4 {[%emt 0:06:08]} bxc4 {[%emt 0:03:48]} 25. bxc4 {[%emt 0:00:06]} Rcb7 {[%emt 0:04:06]} 26. Re1 {[%emt 0:07:25]} e6 {[%emt 0:05:14]} 27. Bf6 {[%emt 0:03:25]} h5 {[%emt 0:04:13]} 28. Bf3 {[%emt 0:05:18]} Rb2 {[%emt 0:03:33]} 29. Be7 {[%emt 0:06:14]} Rxh2 {[%emt 0:04:43]} 30. Bxd6 {[%emt 0:00:50]} Rbb2 {[%emt 0:01:26]} 31. Be4 {[%emt 0:04:24]} Rxa2 {[%emt 0:06:00]} 32. c5 {[%emt 0:05:11]} Rh3+ {[%emt 0:02:42]} 33. Kd4 {[%emt 0:00:46]} Ra4+ {[%emt 0:03:40]} 34. Ke5 {[%emt 0:00:10]} Kg7 {[%emt 0:01:12]} 35. Be7 {[%emt 0:00:39]} Rc3 {[%emt 0:02:26]} 36. Bf6+ {[%emt 0:02:42]} Kh7 {[%emt 0:01:02]} 37. c6 {[%emt 0:00:20]} Rxe4+ {[%emt 0:01:23]} 38. Kxe4 {[%emt 0:01:05]} Rxc6 {[%emt 0:00:11]} 39. Rb1 {[%emt 0:01:30]} Rc4+ {[%emt 0:01:46]} 40. Ke3 {[%emt 0:02:42]} g5 {[%emt 0:01:43]} 41. Bxg5 {[%emt 0:00:38]} Kg6 {[%emt 0:00:38]} 42. Be7 {[%emt 0:00:38]} a5 {[%emt 0:00:38]} 43. Rg1+ {[%emt 0:00:40]} Kh7 {[%emt 0:00:28]} 44. Rg5 {[%emt 0:01:37]} a4 {[%emt 0:00:27]} 45. Rxh5+ {[%emt 0:00:09]} Kg6 {[%emt 0:00:19]} 46. Rg5+ {[%emt 0:00:06]} Kh7 {[%emt 0:00:11]} 47. Rg1 {[%emt 0:01:00]} Rc7 {[%emt 0:00:38]} 48. Bf6 {[%emt 0:00:45]} a3 {[%emt 0:00:23]} 49. Bd4 {[%emt 0:00:38]} a2 {[%emt 0:00:49]} 50. Rg2 {[%emt 0:00:07]} Rc1 {[%emt 0:00:39]} 51. Rxa2 {[%emt 0:00:13]} Re1+ {[%emt 0:00:23]} 52. Kf3 {[%emt 0:00:31]} Rf1+ {[%emt 0:00:06]} 53. Kg4 {[%emt 0:01:09]} Kg6 {[%emt 0:00:26]} 54. Ra8 {[%emt 0:01:29]} f6 {[%emt 0:00:24]} 55. Rf8 {[%emt 0:01:00]} f5+ {[%emt 0:00:48]} 56. Kg3 {[%emt 0:00:06]} Re1 {[%emt 0:00:29]} 57. Rf6+ {[%emt 0:00:21]} Kh5 {[%emt 0:00:41]} 58. Be5 {[%emt 0:00:14]} Re3+ {[%emt 0:00:48]} 59. Kf2 {[%emt 0:00:16]} Ra3 {[%emt 0:00:31]} 60. Rxe6 {[%emt 0:00:13]} Ra2+ {[%emt 0:00:20]} 61. Ke3 {[%emt 0:00:10]} Ra3+ {[%emt 0:00:11]} 62. Kd4 {[%emt 0:00:05]} Ra4+ {[%emt 0:00:16]} 63. Kd5 {[%emt 0:00:07]} Ra5+ {[%emt 0:00:05]} 64. Kd6 {[%emt 0:00:05]} Ra6+ {[%emt 0:00:13]} 65. Ke7 {[%emt 0:00:06]} Ra7+ {[%emt 0:00:06]} 66. Kf6 {[%emt 0:00:06]} Kg4 {[%emt 0:00:10]} 67. Kg6 {[%emt 0:00:12]} Ra8 {[%emt 0:00:34]} 68. Bg7 {[%emt 0:00:26]} Kxf4 {[%emt 0:00:43]} 69. Rb6 {[%emt 0:00:25]} Ra5 {[%emt 0:00:50]} 70. Rb4+ {[%emt 0:00:17]} Kg3 {[%emt 0:00:52]} 71. Rb3+ {[%emt 0:01:04]} Kg4 {[%emt 0:00:15]} 72. Rb4+ {[%emt 0:00:11]} Kg3 {[%emt 0:00:11]} 73. Bh6 {[%emt 0:00:04]} Ra6+ {[%emt 0:00:12]} 74. Kh5 {[%emt 0:00:09]} Rxh6+ {[%emt 0:01:31]} 75. Kxh6 {[%emt 0:00:13]} f4 {[%emt 0:00:03]} 76. Kg5 {[%emt 0:00:26]} f3 {[%emt 0:00:06]} 77. Rg4+ {[%emt 0:00:03]} Kh2 {[%emt 0:00:32]} 78. Rf4 {[%emt 0:01:30]} Kg2 {[%emt 0:00:07]} 79. Kh4 {[%emt 0:00:21]} f2 {[%emt 0:00:04]} 80. Rg4+ {[%emt 0:00:15]} Kh2 {[%emt 0:00:16]} 81. Rf4 {[%emt 0:00:02]} 1/2-1/2

[Event "FIDE WCCC Open-10 2024"]
[Site "Montesilvano"]
[Date "2024.11.22"]
[Round "7.27"]
[White "Akramov, Khasan"]
[Black "Aguike, Toshiya"]
[Result "1/2-1/2"]
[Annotator "NA RC"]
[ECO "A39"]
[WhiteElo "1835"]
[BlackElo "1716"]
[PlyCount "144"]
[EventDate "2024.11.18"]
[EventType "swiss"]
[EventCountry "ITA"]
[SourceTitle "playchess.com"]
[Source "ChessBase"]
[SourceQuality "1"]
[TimeControl "5400+30"]

1. c4 {[%emt 0:00:02]} Nf6 {[%emt 0:00:30]} 2. g3 {[%emt 0:00:10]} g6 {[%emt 0:00:04]} 3. Bg2 {[%emt 0:00:07]} Bg7 {[%emt 0:00:33]} 4. Nc3 {[%emt 0:00:08]} d6 {[%emt 0:00:09]} 5. d4 {[%emt 0:00:13]} O-O {[%emt 0:00:13]} 6. Nf3 {[%emt 0:00:03]} c5 {[%emt 0:00:43]} 7. O-O {[%emt 0:01:28]} Nc6 {[%emt 0:02:39]} 8. b3 {[%emt 0:11:38]} cxd4 {[%emt 0:11:08]} 9. Nxd4 {[%emt 0:00:23]} Nxd4 {[%emt 0:01:18]} 10. Qxd4 {[%emt 1:21:18]} Ne4 {[%emt 0:02:52]} 11. Qxe4 {[%emt 0:00:00]} Bxc3 {[%emt 0:00:07]} 12. Bh6 {[%emt 0:00:00]} Bxa1 {[%emt 0:10:29]} 13. Bxf8 {[%emt 0:00:00]} Bf6 {[%emt 0:00:04]} 14. Bh6 {[%emt 0:00:00]} Rb8 {[%emt 0:00:05]} 15. Qd5 {[%emt 0:00:00]} b6 {[%emt 0:04:50]} 16. Qd2 {[%emt 0:00:00]} Bb7 {[%emt 0:01:56]} 17. e4 {[%emt 0:00:00]} Qc7 {[%emt 0:01:59]} 18. Be3 {[%emt 0:00:00]} Rd8 {[%emt 0:00:49]} 19. a4 {[%emt 0:00:00]} e6 {[%emt 0:06:00]} 20. Rc1 {[%emt 0:00:00]} Rd7 {[%emt 0:09:52]} 21. Rd1 {[%emt 0:00:00]} Bc6 {[%emt 0:03:47]} 22. Qa2 {[%emt 0:00:00]} Qb7 {[%emt 0:03:24]} 23. Qc2 {[%emt 0:00:00]} Bg7 {[%emt 0:05:31]} 24. Bf4 {[%emt 0:00:00]} e5 {[%emt 0:04:31]} 25. Be3 {[%emt 0:00:00]} f5 {[%emt 0:02:03]} 26. f3 {[%emt 0:00:00]} fxe4 {[%emt 0:07:56]} 27. fxe4 {[%emt 0:00:00]} h6 {[%emt 0:03:03]} 28. b4 {[%emt 0:00:00]} Qc7 {[%emt 0:02:59]} 29. b5 {[%emt 0:00:00]} Bb7 {[%emt 0:01:21]} 30. a5 {[%emt 0:00:00]} Kh7 {[%emt 0:04:22]} 31. Qd3 {[%emt 0:00:00]} Rd8 {[%emt 0:01:24]} 32. axb6 {[%emt 0:00:00]} axb6 {[%emt 0:00:07]} 33. Bf1 {[%emt 0:00:00]} Bf8 {[%emt 0:01:28]} 34. Be2 {[%emt 0:00:00]} Ra8 {[%emt 0:00:16]} 35. Rf1 {[%emt 0:00:00]} Bg7 {[%emt 0:00:22]} 36. Bg4 {[%emt 0:00:00]} Re8 {[%emt 0:02:25]} 37. Bh3 {[%emt 0:02:05]} Ba8 {[%emt 0:01:45]} 38. Rf2 {[%emt 0:01:12]} Qb7 {[%emt 0:02:51]} 39. Bg2 {[%emt 0:02:53]} Qc7 {[%emt 0:01:03]} 40. Qf1 {[%emt 0:00:42]} Re7 {[%emt 0:01:44]} 41. h4 {[%emt 0:00:14]} Bb7 {[%emt 0:00:22]} 42. h5 {[%emt 0:00:13]} g5 {[%emt 0:00:52]} 43. Qc1 {[%emt 0:03:52]} Re6 {[%emt 0:01:22]} 44. Qf1 {[%emt 0:01:04]} Re7 {[%emt 0:00:07]} 45. Kh2 {[%emt 0:01:03]} Bc8 {[%emt 0:00:17]} 46. Bh3 {[%emt 0:00:13]} g4 {[%emt 0:00:05]} 47. Bg2 {[%emt 0:00:05]} Be6 {[%emt 0:00:05]} 48. Rf6 {[%emt 0:00:46]} Qc8 {[%emt 0:01:44]} 49. Bxh6 {[%emt 0:00:45]} Bxc4 {[%emt 0:00:43]} 50. Qf2 {[%emt 0:00:10]} Bxf6 {[%emt 0:00:07]} 51. Qxf6 {[%emt 0:00:04]} Qe6 {[%emt 0:00:09]} 52. Qg5 {[%emt 0:02:13]} Rf7 {[%emt 0:00:57]} 53. Qc1 {[%emt 0:00:07]} Bxb5 {[%emt 0:00:36]} 54. Be3 {[%emt 0:00:10]} Bc4 {[%emt 0:00:21]} 55. Bxb6 {[%emt 0:00:30]} Rf6 {[%emt 0:00:24]} 56. Bd8 {[%emt 0:00:23]} Rh6 {[%emt 0:00:21]} 57. Qg5 {[%emt 0:00:13]} Be2 {[%emt 0:00:46]} 58. Kg1 {[%emt 0:00:29]} Bd3 {[%emt 0:00:36]} 59. Qe3 {[%emt 0:00:19]} Bc4 {[%emt 0:00:22]} 60. Qg5 {[%emt 0:01:09]} Ba6 {[%emt 0:00:12]} 61. Qh4 {[%emt 0:00:42]} Bc8 {[%emt 0:00:13]} 62. Bg5 {[%emt 0:00:05]} Bd7 {[%emt 0:00:28]} 63. Bxh6 {[%emt 0:00:07]} Kxh6 {[%emt 0:00:05]} 64. Qd8 {[%emt 0:00:12]} Kxh5 {[%emt 0:00:15]} 65. Bf1 {[%emt 0:00:34]} Bc6 {[%emt 0:00:16]} 66. Ba6 {[%emt 0:00:25]} Bxe4 {[%emt 0:02:06]} 67. Bc8 {[%emt 0:00:08]} Qc4 {[%emt 0:00:14]} 68. Qh4+ {[%emt 0:00:27]} Kg6 {[%emt 0:00:03]} 69. Qxg4+ {[%emt 0:00:11]} Kf7 {[%emt 0:00:10]} 70. Qd7+ {[%emt 0:00:21]} Kg8 {[%emt 0:00:44]} 71. Qe8+ {[%emt 0:00:13]} Kg7 {[%emt 0:00:27]} 72. Qe7+ {[%emt 0:00:08]} Qf7 {[%emt 0:00:18]} 1/2-1/2

[Event "FIDE WCCC Open-10 2024"]
[Site "Montesilvano"]
[Date "2024.11.22"]
[Round "7.28"]
[White "Kadyr, Aldiyar"]
[Black "Garcia Tanjala, Marko"]
[Result "1-0"]
[Annotator "NA RC"]
[ECO "E32"]
[WhiteElo "1759"]
[BlackElo "1833"]
[PlyCount "35"]
[EventDate "2024.11.18"]
[EventType "swiss"]
[EventCountry "ITA"]
[SourceTitle "playchess.com"]
[Source "ChessBase"]
[SourceQuality "1"]
[TimeControl "5400+30"]

1. d4 {[%emt 0:00:18]} Nf6 {[%emt 0:00:34]} 2. c4 {[%emt 0:00:09]} e6 {[%emt 0:00:10]} 3. Nc3 {[%emt 0:00:08]} Bb4 {[%emt 0:01:03]} 4. Qc2 {[%emt 0:00:50]} O-O {[%emt 0:01:13]} 5. e4 {[%emt 0:00:17]} c5 {[%emt 0:00:25]} 6. e5 {[%emt 1:31:48]} cxd4 {[%emt 0:00:11]} 7. a3 {[%emt 0:00:00]} Ba5 {[%emt 0:00:12]} 8. b4 {[%emt 0:00:00]} dxc3 {[%emt 0:02:30]} 9. exf6 {[%emt 0:00:00]} Bc7 {[%emt 0:01:24]} 10. fxg7 {[%emt 0:00:00]} Re8 {[%emt 0:00:40]} 11. Qxc3 {[%emt 0:00:00]} Nc6 {[%emt 0:01:09]} 12. Nf3 {[%emt 0:00:00]} e5 {[%emt 0:02:36]} 13. Ng5 {[%emt 0:00:00]} e4 {[%emt 0:04:32]} 14. Qh3 {[%emt 0:00:00]} Kxg7 {[%emt 0:04:58]} 15. Qxh7+ {[%emt 0:00:00]} Kf6 {[%emt 0:00:12]} 16. Qxf7+ {[%emt 0:00:00]} Ke5 {[%emt 0:00:09]} 17. Qf4+ {[%emt 0:00:00]} Kd4 {[%emt 0:03:03]} 18. Bb2# {[%emt 0:06:00]} 1-0

[Event "FIDE WCCC Open-10 2024"]
[Site "Montesilvano"]
[Date "2024.11.22"]
[Round "7.29"]
[White "Guirado Lara, Pablo"]
[Black "Barsov, Mikhail"]
[Result "1-0"]
[Annotator "NA RC"]
[ECO "B11"]
[WhiteElo "1832"]
[BlackElo "1668"]
[PlyCount "101"]
[EventDate "2024.11.18"]
[EventType "swiss"]
[EventCountry "ITA"]
[SourceTitle "playchess.com"]
[Source "ChessBase"]
[SourceQuality "1"]
[TimeControl "5400+30"]

1. e4 {[%emt 0:00:01]} c6 {[%emt 0:00:03]} 2. Nf3 {[%emt 0:00:04]} d5 {[%emt 0:00:04]} 3. Nc3 {[%emt 0:00:05]} dxe4 {[%emt 0:00:02]} 4. Nxe4 {[%emt 0:00:03]} Nf6 {[%emt 0:00:08]} 5. Qe2 {[%emt 0:00:06]} Nxe4 {[%emt 0:00:03]} 6. Qxe4 {[%emt 0:00:05]} Nd7 {[%emt 0:00:09]} 7. Bc4 {[%emt 0:00:13]} Nf6 {[%emt 0:00:03]} 8. Ne5 {[%emt 0:00:06]} e6 {[%emt 0:00:04]} 9. Qe2 {[%emt 0:00:04]} b5 {[%emt 0:00:35]} 10. Bd3 {[%emt 0:00:09]} Qc7 {[%emt 0:06:44]} 11. Nxc6 {[%emt 0:14:56]} a6 {[%emt 0:00:43]} 12. Ne5 {[%emt 0:02:01]} Bd6 {[%emt 0:00:09]} 13. Nf3 {[%emt 0:00:13]} Nd5 {[%emt 0:03:29]} 14. Be4 {[%emt 0:20:25]} Bb7 {[%emt 0:05:24]} 15. d4 {[%emt 0:06:33]} Bb4+ {[%emt 0:08:36]} 16. Kf1 {[%emt 0:08:51]} Rc8 {[%emt 0:11:47]} 17. c3 {[%emt 0:02:32]} Be7 {[%emt 0:07:10]} 18. a3 {[%emt 0:05:57]} h6 {[%emt 0:17:29]} 19. Ne5 {[%emt 0:09:26]} Bd6 {[%emt 0:16:52]} 20. f4 {[%emt 0:07:46]} Nf6 {[%emt 0:08:55]} 21. Bxb7 {[%emt 0:00:56]} Qxb7 {[%emt 0:00:05]} 22. f5 {[%emt 0:08:32]} Qd5 {[%emt 0:04:53]} 23. fxe6 {[%emt 0:01:29]} fxe6 {[%emt 0:02:17]} 24. Nf3 {[%emt 0:03:15]} Rf8 {[%emt 0:00:50]} 25. Be3 {[%emt 0:02:21]} Ne4 {[%emt 0:00:30]} 26. Bf2 {[%emt 0:02:16]} g5 {[%emt 0:00:57]} 27. h3 {[%emt 0:00:55]} Bg3 {[%emt 0:00:24]} 28. Be3 {[%emt 0:01:42]} Bh4 {[%emt 0:00:25]} 29. Kg1 {[%emt 0:01:04]} Ng3 {[%emt 0:00:25]} 30. Qd3 {[%emt 0:00:24]} Nxh1 {[%emt 0:00:18]} 31. Nxh4 {[%emt 0:01:57]} gxh4 {[%emt 0:06:27]} 32. Kxh1 Rg8 {[%emt 0:00:00]} 33. Rg1 {[%emt 0:01:04]} Rg3 {[%emt 0:00:00]} 34. Kh2 {[%emt 0:00:07]} Rc7 {[%emt 0:00:00]} 35. Qd2 {[%emt 0:00:58]} Rcg7 {[%emt 0:00:00]} 36. Bxh6 {[%emt 0:00:52]} Rg8 {[%emt 0:00:00]} 37. Bf4 {[%emt 0:00:26]} R3g6 {[%emt 0:00:00]} 38. g4 {[%emt 0:00:49]} hxg3+ {[%emt 0:00:00]} 39. Rxg3 {[%emt 0:00:06]} Qf5 {[%emt 0:00:00]} 40. Be5 {[%emt 0:00:32]} Rxg3 {[%emt 0:00:20]} 41. Bxg3 {[%emt 0:01:39]} Qg6 {[%emt 0:01:26]} 42. Qg2 {[%emt 0:00:00]} Qd3 {[%emt 0:00:20]} 43. Qa8+ {[%emt 0:00:00]} Kf7 {[%emt 0:00:09]} 44. Qb7+ {[%emt 0:00:00]} Kf6 {[%emt 0:01:48]} 45. Be5+ {[%emt 0:00:00]} Kg6 {[%emt 0:00:11]} 46. Qg2+ {[%emt 0:00:00]} Kh7 {[%emt 0:00:41]} 47. Qf2 {[%emt 0:00:00]} Rg6 {[%emt 0:02:27]} 48. Qf7+ {[%emt 0:00:00]} Kh6 {[%emt 0:00:11]} 49. Bf4+ {[%emt 0:00:03]} Rg5 {[%emt 0:01:27]} 50. Qf6+ Kh7 51. Qf7+ {[%emt 0:04:57]} 1-0

[Event "FIDE WCCC Open-10 2024"]
[Site "Montesilvano"]
[Date "2024.11.22"]
[Round "7.30"]
[White "Dayal, Samar"]
[Black "Popov, Aleksandr And"]
[Result "1-0"]
[Annotator "NA RC"]
[ECO "C78"]
[WhiteElo "1818"]
[BlackElo "1651"]
[PlyCount "101"]
[EventDate "2024.11.18"]
[EventType "swiss"]
[EventCountry "ITA"]
[SourceTitle "playchess.com"]
[Source "ChessBase"]
[SourceQuality "1"]
[TimeControl "5400+30"]

1. e4 {[%emt 0:00:01]} e5 {[%emt 0:00:07]} 2. Nf3 {[%emt 0:00:01]} Nc6 {[%emt 0:00:09]} 3. Bb5 {[%emt 0:00:01]} a6 {[%emt 0:00:07]} 4. Ba4 {[%emt 0:00:01]} Nf6 {[%emt 0:00:14]} 5. O-O {[%emt 0:00:01]} Bc5 {[%emt 0:00:14]} 6. c3 {[%emt 0:00:36]} b5 {[%emt 0:00:13]} 7. Bb3 {[%emt 0:00:36]} d6 {[%emt 0:00:16]} 8. d4 {[%emt 1:33:13]} Bb6 {[%emt 0:00:11]} 9. h3 {[%emt 0:00:00]} Bb7 {[%emt 0:02:42]} 10. Re1 {[%emt 0:00:00]} h6 {[%emt 0:03:41]} 11. a4 {[%emt 0:00:00]} O-O {[%emt 0:05:05]} 12. Na3 {[%emt 0:00:00]} Re8 {[%emt 0:11:15]} 13. d5 {[%emt 0:00:00]} Ne7 {[%emt 0:04:17]} 14. Nc2 {[%emt 0:00:00]} c6 {[%emt 0:11:20]} 15. Nb4 {[%emt 0:00:00]} cxd5 {[%emt 0:02:37]} 16. Nxd5 {[%emt 0:00:00]} Nexd5 {[%emt 0:01:43]} 17. exd5 {[%emt 0:00:00]} e4 {[%emt 0:10:29]} 18. Nh2 {[%emt 0:00:00]} Re5 {[%emt 0:05:55]} 19. Ng4 {[%emt 0:00:00]} Nxg4 {[%emt 0:00:19]} 20. hxg4 {[%emt 0:00:00]} Qh4 {[%emt 0:04:08]} 21. Be3 {[%emt 0:00:00]} Bxe3 {[%emt 0:02:43]} 22. Rxe3 {[%emt 0:00:00]} Rae8 {[%emt 0:09:00]} 23. axb5 {[%emt 0:07:30]} axb5 {[%emt 0:00:19]} 24. Ra5 {[%emt 0:00:00]} Bc8 {[%emt 0:03:23]} 25. g3 {[%emt 0:00:00]} Qg5 {[%emt 0:02:24]} 26. Qf1 {[%emt 0:00:00]} Bxg4 {[%emt 0:01:25]} 27. Bd1 {[%emt 0:00:00]} Bxd1 {[%emt 0:03:49]} 28. Qxd1 {[%emt 0:00:00]} Rxd5 {[%emt 0:00:22]} 29. Qe2 {[%emt 0:00:00]} Rde5 {[%emt 0:02:23]} 30. b4 {[%emt 0:00:00]} g6 {[%emt 0:03:01]} 31. Qa2 {[%emt 0:00:00]} Qh5 {[%emt 0:02:15]} 32. Ra7 {[%emt 0:00:00]} Rd5 {[%emt 0:01:07]} 33. Kg2 {[%emt 0:00:00]} Rf8 {[%emt 0:02:31]} 34. Rxe4 {[%emt 0:00:00]} Rd1 {[%emt 0:01:06]} 35. Rh4 {[%emt 0:00:00]} Qd5+ {[%emt 0:02:08]} 36. Qxd5 {[%emt 0:00:00]} Rxd5 {[%emt 0:00:05]} 37. Ra5 {[%emt 0:00:00]} h5 {[%emt 0:01:07]} 38. c4 {[%emt 0:05:38]} Re5 {[%emt 0:00:42]} 39. cxb5 {[%emt 0:01:19]} Rb8 {[%emt 0:00:23]} 40. Ra6 {[%emt 0:00:32]} Rexb5 {[%emt 0:00:36]} 41. Rxd6 {[%emt 0:00:02]} Rxb4 {[%emt 0:00:28]} 42. Rxb4 {[%emt 0:00:02]} Rxb4 {[%emt 0:00:13]} 43. Rd7 {[%emt 0:00:25]} Kg7 {[%emt 0:00:14]} 44. Ra7 {[%emt 0:00:23]} Kf6 {[%emt 0:00:09]} 45. Rc7 {[%emt 0:00:23]} Ke6 {[%emt 0:00:13]} 46. Ra7 {[%emt 0:00:05]} f6 {[%emt 0:00:17]} 47. Ra6+ {[%emt 0:00:19]} Ke5 {[%emt 0:00:54]} 48. Ra5+ {[%emt 0:00:21]} Ke4 {[%emt 0:00:19]} 49. Ra6 {[%emt 0:00:04]} Kf5 {[%emt 0:00:20]} 50. Ra5+ {[%emt 0:00:01]} Kg4 {[%emt 0:00:22]} 51. f3# {[%emt 0:00:03]} 1-0